Cogmind - Beta 15 *** ADVENTURER MODE // 2025.08.19 @ 19:21:25 Player: MopeRay Result: Destroyed by G-47 Trooper with Particle Gun Performance ------------- Evolutions (2) 1000 Regions Visited (4) 800 Robots Destroyed (24) 120 Value Destroyed (701) 701 Prototype IDs (2) 40 Alien Tech Used (0) 0 Bonus (7) 7 TOTAL SCORE: 2668 Bonus ------- Follower Combat Kills 7 Cogmind --------- Core Integrity 0/550 Matter 300/300 Energy 100/100 System Corruption 0% Temperature Cool (9) Movement Core (1350) Ox26 Location -8/Materials Parts ------- > --- POWER (2) -------- (None) > --- PROPULSION (3) --- (None) > --- UTILITY (3) ------ Huge Storage Unit > --- WEAPON (3) ------- (None) > --- INVENTORY (25) --- (None) Peak State ------------ > --- POWER ------------ Light Ion Engine > --- PROPULSION ------- Improved Hover Unit Flight Unit Flight Unit > --- UTILITY ---------- Cooling System Visual Processing Unit Reaction Control System > --- WEAPON ----------- Heavy EM Pulse Gun Shock Rifle Assault Rifle > --- INVENTORY -------- Cooling System Sensor Drone Bay Heavy EM Pulse Gun Assault Rifle Light Assault Rifle [Rating: 19] Favorites ----------- Power Light Ion Engine Engine Light Ion Engine Propulsion Flight Unit Treads Advanced Treads Leg Aluminum Leg Hover Unit Improved Hover Unit Flight Unit Flight Unit Utility Sensor Drone Bay Device Sensor Drone Bay Storage Huge Storage Unit Processor Visual Processing Unit Protection Hardened Light Armor Plating Weapon Light Assault Rifle Energy Gun Heavy EM Pulse Gun Ballistic Gun Light Assault Rifle Special Weapon Mining Laser Build | -11 -10 -10 -9 -8 ------- Run | Yrd Mat Min Mat Mat Slots Evolved 4 | . . . 2 2 Power 1 | . . . 1 . Propulsion 1 | . . . 1 . Utility 1 | . . . . 1 Weapon 1 | . . . . 1 Parts Attached 36 | 6 . 4 9 17 Power 3 | 1 . . 1 1 Engine 3 | 1 . . 1 1 Core . | . . . . . Reactor . | . . . . . Propulsion 10 | 2 . 2 2 4 Treads 1 | . . . . 1 Leg 2 | 2 . . . . Wheel . | . . . . . Hover 1 | . . . . 1 Flight 6 | . . 2 2 2 Utility 11 | 1 . 1 3 6 Device 7 | 1 . 1 2 3 Storage 2 | . . . . 2 Processor 1 | . . . 1 . Hackware . | . . . . . Protection 1 | . . . . 1 Artifact . | . . . . . Weapon 12 | 2 . 1 3 6 Energy Gun 5 | 1 . . 1 3 Energy Cannon . | . . . . . Ballistic Gun 6 | 1 . . 2 3 Ballistic Cannon . | . . . . . Launcher . | . . . . . Special Weapon 1 | . . 1 . . Impact Weapon . | . . . . . Slashing Weapon . | . . . . . Piercing Weapon . | . . . . . Special Melee Weapon . | . . . . . Unidentified Prototypes 2 | . . 1 . 1 Parts Lost 23 | . . . 3 20 Power 3 | . . . 1 2 Propulsion 6 | . . . . 6 Utility 5 | . . . . 5 Weapon 9 | . . . 2 7 Highest Loss Streak 7 | . . . 3 7 To Critical Strikes . | . . . . . Average Backups 2 | 2 5 3 2 2 Power . | . . . . . Propulsion . | 1 3 . 1 . Utility 1 | . . . . 2 Weapon . | . 2 2 . . Tool/Special . | . . . . . Unused Backups 10 | . . 5 2 3 Power 1 | . . 1 . . Propulsion 3 | . . 3 . . Utility 2 | . . . . 2 Weapon 4 | . . 1 2 1 Tool/Special . | . . . . . Average Slot Usage (%) 70 | . 85 97 75 57 Engine 9 | . 14 14 10 6 Leg 9 | . 28 26 16 . Flight 9 | . . 2 5 14 Device 13 | . 14 25 19 6 Storage 2 | . . . . 5 Processor 1 | . . . 2 1 Energy Gun 3 | . 14 . 1 5 Ballistic Gun 14 | . 14 14 17 13 Special Weapon 2 | . . 13 1 . Peak Build Rating 19 | 6 6 14 15 19 Average Rating 10 | 3 6 12 13 9 On Entrance 7 | . 6 6 14 11 Naked Turns 3 | . . . . 3 Heaviest Build 89 | 7 7 20 21 89 Greatest Support 22 | 20 20 20 20 22 Greatest Overweight (x) 26 | . . 4 2 26 Average Overweight (x) 1 | . . . . 4 Largest Inventory Capacity 25 | 5 5 5 5 25 Average Capacity 11 | 5 5 5 5 17 Most Carried 5 | 5 5 5 5 5 Average Carried 2 | 2 5 3 2 2 Final Capacity 25 | 5 5 5 5 25 Final Carried 5 | 5 5 3 5 . Class Distribution -------------------- 56% | Mutant 30% | Scavenger-Mutant 8% | Scavenger-Tank 4% | Tank Dominant Class ---------------- Mutant | -10/Materials Mutant | -10/Mines Mutant | -9/Materials Scavenger-Mutant | -8/Materials Resources | -11 -10 -10 -9 -8 ----------- Run | Yrd Mat Min Mat Mat Matter Collected 757 | 252 . 48 99 358 Remotely . | . . . . . Salvage Created 794 | 36 . 18 135 605 Parts 48 | 3 . 2 6 37 Haulers Intercepted . | . . . . . Recyclers Shooed . | . . . . . Parts Field Recycled . | . . . . . Retrieved Matter . | . . . . . Parts Self-Destructed . | . . . . . Prevented . | . . . . . Kills | -11 -10 -10 -9 -8 ------- Run | Yrd Mat Min Mat Mat Combat Hostiles Destroyed 22 | 1 . 1 4 16 Guns 20 | 1 . 1 3 15 AOE 2 | . . . 1 1 Classes Destroyed 7 | 1 . 1 1 4 Operator 1 | . . . . 1 Watcher 1 | . . . . 1 Swarmer 11 | . . 1 2 8 Grunt 6 | 1 . . 1 4 Brawler 1 | . . . . 1 Sentry 3 | . . . 1 2 Hunter 1 | . . . . 1 Best Kill Streak 6 | 1 . 1 2 6 Combat Bots Only 6 | 1 . 1 2 6 Max Kills in Single Turn 2 | 1 . 1 1 2 Gunslinging 1 | . . . . 1 Exploded 1 | . . . 1 1 Melee . | . . . . . Uniques/NPCs Destroyed . | . . . . . Combat | -11 -10 -10 -9 -8 -------- Run | Yrd Mat Min Mat Mat Hostile Shots Fired 379 | 2 . 3 59 315 Missed 103 | 1 . . 15 87 Hits 276 | 1 . 3 44 228 Projectile 276 | 1 . 3 44 228 Critical Strikes 6 | . . . 1 5 Damage Taken 2407 | 9 . 22 479 1897 Core 689 | . . 8 127 554 Absorbed by Shields 62 | . . . . 62 Ignored by Resistances 739 | 3 . 6 139 591 Core Remaining (%) 88 | 100 . 96 68 . Volleys Fired 80 | 2 2 4 33 39 Largest 3 | 2 2 1 2 3 Hottest 120 | 60 60 20 60 120 Shots Fired 116 | 4 4 4 41 63 Gun 116 | 4 4 4 41 63 Cannon . | . . . . . Launcher . | . . . . . Special . | . . . . . Kinetic 94 | 2 2 4 40 46 Thermal 1 | . . . . 1 Explosive . | . . . . . Electromagnetic 21 | 2 2 . 1 16 Robot Hit Streak 23 | 2 3 1 10 23 Robot Miss Streak 4 | 1 1 1 4 1 Penetration Max . | . . . . . Secondary Targets 6 | . . . . 6 Max Gunslinging Chain 1 | . . . . 1 Shots Hit Robots 91 | 2 3 2 27 57 Core Hits 42 | 1 1 1 8 31 Critical Kills 1 | . . . . 1 Critical Parts Destroyed 1 | . . 1 . . Critical Strikes 2 | . . 1 . 1 Destroy 2 | . . 1 . 1 Melee Attacks . | . . . . . Impact . | . . . . . Slashing . | . . . . . Piercing . | . . . . . Sneak Attacks . | . . . . . Combat Hostiles . | . . . . . Follow-up Attacks . | . . . . . Damage Inflicted 1275 | 21 42 24 275 913 Guns 1029 | 21 42 16 220 730 Cannons . | . . . . . Explosions 236 | . . . 53 183 Melee . | . . . . . Ramming 10 | . . 8 2 . Kinetic 695 | 6 18 16 209 446 Thermal 251 | . . . 53 198 Explosive . | . . . . . Electromagnetic 319 | 15 24 . 11 269 Impact . | . . . . . Slashing . | . . . . . Piercing . | . . . . . Highest Corruption . | . . . . . Average Corruption . | . . . . . Corruption Purged . | . . . . . Corruption Blocked . | . . . . . Overload Shots . | . . . . . Overflow Damage 27 | . . . 25 2 Projectiles . | . . . . . Explosions 27 | . . . 25 2 Melee . | . . . . . Knockbacks . | . . . . . Impact . | . . . . . Kinetic . | . . . . . Secondary . | . . . . . Self-Inflicted Damage 121 | . . . 121 . Shots 2 | . . . 2 . Rammed 1 | . . . . 1 Targets Rammed 5 | . . 2 2 1 Kicked 4 | . . 2 2 . Crushed . | . . . . . Highest Temperature 43 | 26 . . 21 43 Average Temperature 19 | 15 . . 19 20 Received Heat Transfer 691 | 6 . . 93 592 Siege Activations . | . . . . . Martial Activations . | . . . . . Shielding Activations . | . . . . . Robots Disrupted . | . . . . . Combat Hostiles . | . . . . . Robots Corrupted . | . . . . . Combat Hostiles . | . . . . . Parts Fried 1 | . . . . 1 Impact Corruptions . | . . . . . Robots Melted . | . . . . . Combat Hostiles . | . . . . . Parts Melted . | . . . . . Heat Transferred 287 | . . . 50 237 Parts Sabotaged . | . . . . . Parts Stolen . | . . . . . Parts Stripped . | . . . . . Power Chain Reactions 3 | . . . 1 2 Alert | -11 -10 -10 -9 -8 ------- Run | Yrd Mat Min Mat Mat Maximum Alert Level . | . . . . . Low Security (%) 100 | 100 100 100 100 100 Level 1 . | . . . . . Level 2 . | . . . . . Level 3 . | . . . . . Level 4 . | . . . . . Level 5 . | . . . . . High Security . | . . . . . Max Security . | . . . . . Peak Influence 135 | 20 5 56 135 110 Initial 5 | . 5 . . . Average 22 | 3 2 10 50 14 Influence Increases 735 | 20 . 66 220 429 Destroy 0b10 Robot/C 460 | 20 . 40 80 320 Destroy 0b10 Robot/NC 10 | . . . . 10 Destroy Leader 112 | . . 10 30 72 Allied During Kill 1 | . . 1 . . Successful Hack 3 | . . . . 3 Disable Machine 54 | . . . 36 18 Destroy Structure 65 | . . . 59 6 Lose Combat Pursuer 30 | . . 15 15 . Influence Decreases 695 | 10 10 66 220 389 Entered New Map 5 | . 5 . . . Time Decay 501 | 10 5 66 200 220 Lost Part 189 | . . . 20 169 Squads Dispatched 2 | . . . 1 1 Investigation 2 | . . . 1 1 Extermination . | . . . . . Reinforcement . | . . . . . Assault . | . . . . . Garrison . | . . . . . Intercept . | . . . . . Searches Triggered . | . . . . . Construction Impeded . | . . . . . Haulers Reinforced . | . . . . . Active Scanning Responses . | . . . . . Cargo Convoy Interrupts . | . . . . . Stealth | -11 -10 -10 -9 -8 --------- Run | Yrd Mat Min Mat Mat Distress Signals 1 | . . . . 1 Communications Jammed . | . . . . . Distress Signals . | . . . . . Times Spotted 47 | 1 2 3 16 25 Peak Tracking Total 7 | 1 2 3 6 7 Tactical Retreats 2 | . . 1 1 . Traps | -11 -10 -10 -9 -8 ------- Run | Yrd Mat Min Mat Mat Traps Triggered . | . . . . . Indirectly . | . . . . . Trap Hack Attempts . | . . . . . Triggered . | . . . . . Disarmed . | . . . . . Reprogrammed . | . . . . . Reused . | . . . . . Traps Extracted . | . . . . . Installed . | . . . . . Triggered . | . . . . . Machines | -11 -10 -10 -9 -8 ---------- Run | Yrd Mat Min Mat Mat Machines Disabled 6 | . . . 4 2 Max in Single Turn 4 | . . . 4 1 Machines Repaired . | . . . . . Machines Dismantled . | . . . . . Machines Sabotaged . | . . . . . Overloaded Fab Kills . | . . . . . Hacking | -11 -10 -10 -9 -8 --------- Run | Yrd Mat Min Mat Mat Machines Accessed 6 | . 1 1 3 1 Terminals 4 | . 1 . 2 1 Fabricators . | . . . . . Repair Stations . | . . . . . Recycling Units 1 | . . . 1 . Scanalyzers . | . . . . . Garrison Access . | . . . . . Total Hacks 23 | . 3 1 15 4 Successful 19 | . 2 1 12 4 Failed 4 | . 1 . 3 . Catastrophic . | . . . . . Database Lockouts . | . . . . . Manual . | . . . . . Terminals 15 | . 3 . 8 4 Fabricators . | . . . . . Repair Stations . | . . . . . Recycling Units 7 | . . . 7 . Scanalyzers . | . . . . . Garrison Access . | . . . . . Terminal Hacks 13 | . 2 1 6 4 Record 6 | . 1 . 4 1 Open Door 1 | . . 1 . . Emergency Access Points 1 | . . . . 1 Alert Level 3 | . 1 . 1 1 Dispatch Records 2 | . . . 1 1 Fabricator Hacks . | . . . . . Repair Station Hacks . | . . . . . Recycling Unit Hacks 6 | . . . 6 . Recycle Component 2 | . . . 2 . Process 2 | . . . 2 . Report Inventory 1 | . . . 1 . Retrieve Matter 1 | . . . 1 . Scanalyzer . | . . . . . Garrison Access Hacks . | . . . . . Unauthorized Hacks . | . . . . . Terminals . | . . . . . Fabricators . | . . . . . Repair Stations . | . . . . . Recycling Units . | . . . . . Scanalyzers . | . . . . . Garrison Access . | . . . . . Data Cores Recovered 1 | . . . . 1 Used . | . . . . . Hacking Detections 4 | . 1 . 2 1 Full Trace Events 2 | . . . 1 1 Feedback Events . | . . . . . Feedback Blocked . | . . . . . Robot Schematics Acquired . | . . . . . Robots Built . | . . . . . Authchips . | . . . . . Time . | . . . . . Total Robot Build Rating . | . . . . . Part Schematics Acquired . | . . . . . Parts Built . | . . . . . Authchips . | . . . . . Time . | . . . . . Total Part Build Rating . | . . . . . Parts Repaired . | . . . . . Time . | . . . . . Parts Recycled 2 | . . . 2 . Recycled Matter 63 | . . . 63 . Retrieved Matter . | . . . . . Retrieved Components . | . . . . . Parts Scanalyzed . | . . . . . Part Schematics Acquired . | . . . . . Parts Damaged . | . . . . . Bothacking | -11 -10 -10 -9 -8 ------------ Run | Yrd Mat Min Mat Mat Used RIF Installer . | . . . . . Robots Hacked . | . . . . . Non-combat . | . . . . . Combat . | . . . . . Robot Hacks Applied . | . . . . . Relay Couplers Released . | . . . . . Fabnet Peak Effective % . | . . . . . Robots Rewired . | . . . . . Allies Hacked . | . . . . . Hacks Repelled . | . . . . . Allies | -11 -10 -10 -9 -8 -------- Run | Yrd Mat Min Mat Mat Total Allies 1 | . . 1 . . Largest Group 1 | . . 1 . . Highest-Rated Group 31 | . . 31 . . Highest-Rated Ally 31 | . . 31 . . Total Orders . | . . . . . Ally Attacks 3 | . . 3 . . Total Damage 22 | . . 22 . . Kills 1 | . . 1 . . Allies Corrupted . | . . . . . Allies Melted . | . . . . . Intel | -11 -10 -10 -9 -8 ------- Run | Yrd Mat Min Mat Mat Active Infowar (turns) 230 | . . . 95 135 Optics 229 | . . . 95 134 Sensors 1 | . . . . 1 Robot Analysis Total . | . . . . . Derelict Logs Recovered 2 | . . 2 . . Drone Launches 20 | . . . 20 . Drone Recoveries 19 | . . . 19 . Exploration | -11 -10 -10 -9 -8 ------------- Run | Yrd Mat Min Mat Mat Turns Passed 2035 | 116 44 346 515 1014 Spaces Moved 828 | 85 33 237 265 208 Core 31 | 24 . . . 7 Treads 5 | . . . . 5 Legs 494 | 61 33 227 173 . Wheels . | . . . . . Hover 96 | . . . . 96 Flight 202 | . . 10 92 100 Fastest Speed 37 | 50 120 120 37 50 Average Speed 182 | 100 120 124 126 364 Slowest Speed 1350 | 120 120 370 197 1350 Overloaded Moves . | . . . . . Propulsion Burnouts . | . . . . . Robots Hopped . | . . . . . Potential Cave-ins . | . . . . . Cave-ins Triggered . | . . . . . Exploration Rate (%) 23 | 9 10 63 20 14 Regions Visited 4 Branch Regions 1 Pre-discovered Areas . | . . . . . Known Exits Taken . | . . . . . Unknown Exits Taken 4 | 1 1 1 1 . Scrap Searched . | . . . . . Spaces Dug . | . . . . . Terrain Destroyed 88 | . . . 81 7 Melee . | . . . . . Projectile . | . . . . . AOE 88 | . . . 81 7 Terrain Rammed . | . . . . . Walls Destroyed . | . . . . . Machines Disabled . | . . . . . Actions | -11 -10 -10 -9 -8 --------- Run | Yrd Mat Min Mat Mat Total 1250 | 112 34 287 407 410 Wait 223 | 9 . 21 82 111 Move 824 | 84 32 236 264 208 Hop . | . . . . . Pick Up 47 | 11 . 8 11 17 Fast Attach 4 | . . . . 4 Attach 26 | 6 . 3 3 14 Detach 3 | . . 1 . 2 Swap 14 | . . 3 8 3 Drop 24 | . . 9 4 11 Fire 80 | 2 2 4 33 39 Melee . | . . . . . Ram 1 | . . . . 1 Kick 4 | . . 2 2 . Crush . | . . . . . Escape Stasis . | . . . . . Rewire . | . . . . . Trap . | . . . . . Miscellaneous . | . . . . . Route ------- -11/Scrapyard -10/Materials -10/Mines -9/Materials -8/Materials History --------- Turn | Location | Event 2 | -11/Scrapyard | Met Revision 17 80 | -11/Scrapyard | Discovered new exit (range 8) 117 | -11/Scrapyard | Entered Materials 138 | -10/Materials | Discovered new exit (range 16) 161 | -10/Materials | Entered Mines 164 | -10/Mines | Received a Mining Laser from a helpful Derelict 210 | -10/Mines | Found the Drone Emporium 217 | -10/Mines | Found Prototype Device 218 | -10/Mines | Identified Sensor Drone Bay 248 | -10/Mines | Met a Derelict bent on vengeance 307 | -10/Mines | Build established: Mutant 495 | -10/Mines | Learned Materials trap positions 497 | -10/Mines | Discovered new exit (range 8) 507 | -10/Mines | Entered Materials 507 | -9/Materials | Evolved 2 slots: Power x1, Propulsion x1 508 | -9/Materials | Loaded intel: 18 trap records 638 | -9/Materials | Lost 3 parts (1p2w) 960 | -9/Materials | Discovered new exit (range 18) 1022 | -9/Materials | Entered another Materials area 1022 | -8/Materials | Evolved 2 slots: Utility x1, Weapon x1 1300 | -8/Materials | Lost 4 parts (1p1n1u1w) 1365 | -8/Materials | Lost 7 parts (2n2u3w) 1393 | -8/Materials | Core integrity fell below 50% 1417 | -8/Materials | Lost 3 parts (1n1u1w) 1691 | -8/Materials | Build established: Scavenger-Mutant 2005 | -8/Materials | Core integrity fell below 20% 2027 | -8/Materials | Lost 6 parts (1p2n1u2w) 2036 | -8/Materials | Destroyed by G-47 Trooper with Particle Gun Last Messages --------------- Shield Generator destroyed. Lgt. Ion Engine destroyed. K-01 Serf collects debris. Flight Unit destroyed. K-01 Serf collects debris. G-47 Trooper destroyed. K-01 Serf collects debris. Flight Unit destroyed. R-06 Scavenger collects Lgt. Ion Engine. K-01 Serf collects debris. R-06 Scavenger collects Flight Unit. Lgt. Assault Rifle destroyed. K-01 Serf collects debris. R-06 Scavenger collects Hammer. K-01 Serf collects debris. R-06 Scavenger collects Lgt. Treads. K-01 Serf collects debris. Acquired 20 matter. R-06 Scavenger collects Particle Gun. U-05 Engineer builds a Door. Map ----- +----------------------------------------------------+ | ?????????????????????????????????????????????????? | | ?????????????????????????????????????????????????? | | ?????????????????????????????????????????????????? | | ?????????????????????????????????????????????????? | | ?????????????????????????????????????????????????? | | ?????????????????????????????????????????????????? | | ?????????????????????????????????????????????????? | | ?????????????????????????????????????????????????? | | ?????????????????????????????????????????????????? | | ?????????????????????????????????????????????????? | | ?????????????????????????????????????????????????? | | ?????????????????????????????????????????????????? | | ?????????????????????????????????????????????????? | | ?????????????????????????????????????????????????? | | ?????????????????????????????????????????????????? | | ?????????????????????????????????????????????????? | | ?????????????????????????????????????????????????? | | ??????????????????????########???????????????????? | | ??????????????????????# !!????????????????????? | | ??????????????????????# !!????????????????????? | | ??????????????????????? !????????###########??? | | ??????????????????????? ????????# #??? | | ??????????????????????# ?????????# #??? | | ??????????????????????? ?????????# !!! #??? | | ??????????????????# ###/########### !!! #??? | | ??????????????????#u %%% @%k # ! #?## | | ??????????????""" + %% g + #?# | | ??????????????""" # r # #?# | | ??????????????????# ############### #?# | | ??????????????????# ???????????????##+########?# | | ??????????????????# ????????????????# #???????# | | ??????????????????#?????????????????# #???????# | | ????????????????????????????????????# #???????# | | ????????????????????????????????????# #???????# | | ????????????????????????????????????# ###?????## | | ????????????????????????????????????# # ######## | | ????????????????????????????????????# # | | ????????????????????????????????????# # % %% | | ????????????????????????????????????# # % "" | | ????????????????????????????????????# # """ | | ????????????????????????????????????# + """ """ | | ????????????????????????????????????# # | | ????????????????????????????????????# ########## | | ????????????????????????????????????# #????????? | | ????????????????????????????????????# #????????? | | ????????????????????????????????????# #????????? | | ????????????????????????????????????# #????????? | | ????????????????????????????????????# #????????? | | ????????????????????????????????????# #????????? | | ????????????????????????????????????# #????????? | +----------------------------------------------------+ Best States ------------- Heat Dissipation 75 Energy Generation 10 Energy Capacity 125 Matter Stores 300 Matter Capacity 300 Sight Range 18 Terrain Scan Density 10 Armor Coverage 150 Resistance: KI 20 Resistance: TH 20 Resistance: EX 20 Resistance: EM 20 Resistance: I 20 Resistance: S 20 Resistance: P 20 Evasion (%) 62 Recoil Reduction 1 Offensive Hacking 10 Item Schematics ----------------- None Robot Schematics ------------------ None Fabricated ------------ Nothing Repaired ---------- Nothing Alien Tech Used ----------------- None Achievements -------------- Release The Drones! Risk Taker Challenges ------------ None Game ------ Seed WeightUltimateInsulator Manual? 0 Play Time 00:29:18 Cumulative 1.4 hours Start 2025.08.19 @ 18:54:19 End 2025.08.19 @ 19:21:25 Sessions 1 Manual Loads 0 Difficulty Adventurer Special Mode None Game No. 3 Rogue 0 Adventurer 3 Explorer 0 Win Type - Total 0 Types 0/0/0/0/0/0/0/0/0/0 Lore% 1 Gallery% 4 Achievement% 4 Wizard Run 0 Options --------- Layout 1 ASCII 0 Keyboard 0 Movement Mouse Keybinds 0 Fullscreen 1 Font 24/Smallcaps Map View 50x35 Zoom Use 0% Tactical HUD 0 Map Filters NONE Filters NONE Steam 0 RUN: b683c93d-f383-416e-ac46-f801ea1a3e36